[Event "Titled Tuesday Blitz April 11 Early 2023"]
[White "Keymer, Vincent"]
[Black "Toktomushev, Teimur"]
[WhiteFideId "12940690"]
[BlackFideId "14176726"]
[WhiteElo "2651"]
[BlackElo "2116"]
[Result "1-0"]
[Round "03"]
[TimeControl "180+2"]
[Date "2023.04.11"]
[WhiteClock "0:00:19"]
[BlackClock "0:00:02"]

1. a3 {[%clk 0:02:57]}  e5 {[%clk 0:02:56]} 2. c4 {[%clk 0:02:56]}  Nf6 {[%clk 0:02:49]} 3. d3 {[%clk 0:02:56]}  d5 {[%clk 0:02:44]} 4. cxd5 {[%clk 0:02:56]}  Nxd5 {[%clk 0:02:45]} 5. Nf3 {[%clk 0:02:56]}  Bd6 {[%clk 0:02:23]} 6. e4 {[%clk 0:02:50]}  Nb6 {[%clk 0:02:07]} 7. Be2 {[%clk 0:02:39]}  O-O {[%clk 0:02:06]} 8. O-O {[%clk 0:02:38]}  Nc6 {[%clk 0:02:05]} 9. Be3 {[%clk 0:02:30]}  Be6 {[%clk 0:01:51]} 10. Nbd2 {[%clk 0:02:17]}  Nd4 {[%clk 0:01:04]} 11. Nxd4 {[%clk 0:02:14]}  exd4 {[%clk 0:01:05]} 12. Bxd4 {[%clk 0:02:14]}  Bxh2+ {[%clk 0:01:05]} 13. Kxh2 {[%clk 0:02:15]}  Qxd4 {[%clk 0:01:06]} 14. Qc1 {[%clk 0:02:09]}  c6 {[%clk 0:00:46]} 15. f4 {[%clk 0:02:00]}  f5 {[%clk 0:00:42]} 16. Nf3 {[%clk 0:01:58]}  Qd6 {[%clk 0:00:35]} 17. g3 {[%clk 0:01:52]}  Rad8 {[%clk 0:00:30]} 18. b4 {[%clk 0:01:45]}  Nd7 {[%clk 0:00:11]} 19. e5 {[%clk 0:01:41]}  Qe7 {[%clk 0:00:11]} 20. Qe3 {[%clk 0:01:39]}  Nb6 {[%clk 0:00:07]} 21. Rac1 {[%clk 0:01:30]}  Rd7 {[%clk 0:00:07]} 22. d4 {[%clk 0:01:16]}  Rfd8 {[%clk 0:00:07]} 23. b5 {[%clk 0:01:17]}  Bd5 {[%clk 0:00:07]} 24. bxc6 {[%clk 0:01:17]}  bxc6 {[%clk 0:00:03]} 25. Rfd1 {[%clk 0:01:01]}  h6 {[%clk 0:00:03]} 26. Nh4 {[%clk 0:01:00]}  Qf7 {[%clk 0:00:02]} 27. Bf3 {[%clk 0:00:54]}  Bxf3 {[%clk 0:00:02]} 28. Nxf3 {[%clk 0:00:54]}  Qe6 {[%clk 0:00:02]} 29. Qe2 {[%clk 0:00:49]}  Nd5 {[%clk 0:00:03]} 30. Rd2 {[%clk 0:00:47]}  Rb7 {[%clk 0:00:02]} 31. Rdc2 {[%clk 0:00:47]}  Rb6 {[%clk 0:00:03]} 32. a4 {[%clk 0:00:45]}  Rdb8 {[%clk 0:00:03]} 33. a5 {[%clk 0:00:45]}  Rb3 {[%clk 0:00:03]} 34. Rxc6 {[%clk 0:00:45]}  Qf7 {[%clk 0:00:02]} 35. Rc8+ {[%clk 0:00:44]}  Kh7 {[%clk 0:00:01]} 36. Rxb8 {[%clk 0:00:44]}  Rxb8 {[%clk 0:00:02]} 37. e6 {[%clk 0:00:33]}  Qe7 {[%clk 0:00:02]} 38. Rc2 {[%clk 0:00:22]}  Rb3 {[%clk 0:00:02]} 39. Ng5+ {[%clk 0:00:19]}  hxg5 {[%clk 0:00:02]} 40. Qh5+ {[%clk 0:00:19]}  Kg8 {[%clk 0:00:02]} 41. Rc8+ {[%clk 0:00:19]}  Qf8 {[%clk 0:00:02]} 42. Rxf8+ {[%clk 0:00:19]} 1-0


[Site "https://www.chess.com"]

[Event "Titled Tuesday Blitz April 11 Early 2023"]
[White "Shukhman, Anna"]
[Black "Yuan, Qingyu"]
[WhiteFideId "54180058"]
[BlackFideId "8609772"]
[WhiteElo "2125"]
[BlackElo "2359"]
[Result "0-1"]
[Round "03"]
[TimeControl "180+2"]
[Date "2023.04.11"]
[WhiteClock "0:00:17"]
[BlackClock "0:00:21"]

1. e4 {[%clk 0:03:00]}  c5 {[%clk 0:02:59]} 2. Nf3 {[%clk 0:03:00]}  Nc6 {[%clk 0:03:00]} 3. Bb5 {[%clk 0:02:59]}  g6 {[%clk 0:02:57]} 4. O-O {[%clk 0:02:59]}  Bg7 {[%clk 0:02:57]} 5. c3 {[%clk 0:02:59]}  e6 {[%clk 0:02:53]} 6. d4 {[%clk 0:02:58]}  Qb6 {[%clk 0:02:43]} 7. Na3 {[%clk 0:02:49]}  d5 {[%clk 0:02:14]} 8. exd5 {[%clk 0:02:45]}  exd5 {[%clk 0:02:15]} 9. dxc5 {[%clk 0:02:43]}  Qxc5 {[%clk 0:02:12]} 10. Be3 {[%clk 0:02:41]}  Qd6 {[%clk 0:02:07]} 11. Nc4 {[%clk 0:02:39]}  Qd8 {[%clk 0:02:05]} 12. Nce5 {[%clk 0:02:36]}  Ne7 {[%clk 0:02:04]} 13. Bc5 {[%clk 0:02:27]}  O-O {[%clk 0:01:58]} 14. Nxc6 {[%clk 0:02:25]}  bxc6 {[%clk 0:01:58]} 15. Re1 {[%clk 0:02:07]}  Be6 {[%clk 0:01:39]} 16. Bxe7 {[%clk 0:02:05]}  Qxe7 {[%clk 0:01:39]} 17. Bxc6 {[%clk 0:02:05]}  Rab8 {[%clk 0:01:40]} 18. Qd2 {[%clk 0:02:01]}  Rb6 {[%clk 0:01:28]} 19. Ba4 {[%clk 0:01:59]}  Rfb8 {[%clk 0:01:23]} 20. b4 {[%clk 0:01:56]}  Qc7 {[%clk 0:01:13]} 21. Nd4 {[%clk 0:01:53]}  a5 {[%clk 0:01:02]} 22. a3 {[%clk 0:01:51]}  axb4 {[%clk 0:00:58]} 23. axb4 {[%clk 0:01:52]}  h5 {[%clk 0:00:57]} 24. Bb3 {[%clk 0:01:45]}  Rc8 {[%clk 0:00:51]} 25. Rec1 {[%clk 0:01:30]}  Kh7 {[%clk 0:00:46]} 26. Nxe6 {[%clk 0:00:53]}  fxe6 {[%clk 0:00:45]} 27. Qd3 {[%clk 0:00:46]}  Rc6 {[%clk 0:00:36]} 28. Bc2 {[%clk 0:00:41]}  Qf7 {[%clk 0:00:34]} 29. Qe2 {[%clk 0:00:37]}  Rxc3 {[%clk 0:00:27]} 30. Qxh5+ {[%clk 0:00:35]}  Bh6 {[%clk 0:00:21]} 31. Bxg6+ {[%clk 0:00:28]}  Qxg6 {[%clk 0:00:22]} 32. Ra7+ {[%clk 0:00:22]}  Kh8 {[%clk 0:00:21]} 33. Rxc3 {[%clk 0:00:17]}  Qb1+ {[%clk 0:00:21]} 0-1


[Site "https://www.chess.com"]

[Event "Titled Tuesday Blitz April 11 Early 2023"]
[White "Gheorghiu, Calin"]
[Black "HSH1987"]
[WhiteFideId "1200305"]
[WhiteElo "2223"]
[BlackElo "2684"]
[Result "0-1"]
[Round "03"]
[TimeControl "180+2"]
[Date "2023.04.11"]
[WhiteClock "0:00:20"]
[BlackClock "0:01:00"]

1. e4 {[%clk 0:03:00]}  e5 {[%clk 0:02:59]} 2. Nf3 {[%clk 0:03:00]}  Nc6 {[%clk 0:02:58]} 3. Bb5 {[%clk 0:03:00]}  Nf6 {[%clk 0:02:58]} 4. d3 {[%clk 0:02:58]}  d6 {[%clk 0:02:57]} 5. c3 {[%clk 0:02:56]}  Bd7 {[%clk 0:02:57]} 6. O-O {[%clk 0:02:57]}  g6 {[%clk 0:02:57]} 7. Re1 {[%clk 0:02:56]}  Bg7 {[%clk 0:02:57]} 8. Nbd2 {[%clk 0:02:56]}  O-O {[%clk 0:02:57]} 9. Nf1 {[%clk 0:02:56]}  a5 {[%clk 0:02:55]} 10. Ng3 {[%clk 0:02:54]}  Qe8 {[%clk 0:02:54]} 11. a4 {[%clk 0:02:48]}  Kh8 {[%clk 0:02:49]} 12. d4 {[%clk 0:02:40]}  Ng8 {[%clk 0:02:41]} 13. h3 {[%clk 0:02:33]}  Nge7 {[%clk 0:02:38]} 14. Bg5 {[%clk 0:02:22]}  f6 {[%clk 0:02:37]} 15. Bd2 {[%clk 0:02:15]}  Nd8 {[%clk 0:02:28]} 16. Bc4 {[%clk 0:02:09]}  Be6 {[%clk 0:02:27]} 17. Bf1 {[%clk 0:01:51]}  Bg8 {[%clk 0:02:21]} 18. c4 {[%clk 0:01:24]}  Ne6 {[%clk 0:02:05]} 19. Bc3 {[%clk 0:01:24]}  c5 {[%clk 0:02:03]} 20. d5 {[%clk 0:01:18]}  Nd4 {[%clk 0:02:02]} 21. Nxd4 {[%clk 0:01:06]}  cxd4 {[%clk 0:02:00]} 22. Bd2 {[%clk 0:01:05]}  f5 {[%clk 0:01:58]} 23. exf5 {[%clk 0:00:57]}  gxf5 {[%clk 0:01:56]} 24. Nh5 {[%clk 0:00:57]}  Qg6 {[%clk 0:01:51]} 25. Nxg7 {[%clk 0:00:56]}  Qxg7 {[%clk 0:01:52]} 26. Qh5 {[%clk 0:00:55]}  f4 {[%clk 0:01:44]} 27. Bd3 {[%clk 0:00:52]}  Bf7 {[%clk 0:01:43]} 28. Qh4 {[%clk 0:00:50]}  Bg6 {[%clk 0:01:37]} 29. Ra3 {[%clk 0:00:44]}  Rg8 {[%clk 0:01:34]} 30. Bf1 {[%clk 0:00:40]}  Nf5 {[%clk 0:01:32]} 31. Qg4 {[%clk 0:00:38]}  Qf7 {[%clk 0:01:30]} 32. Qd1 {[%clk 0:00:35]}  Bh5 {[%clk 0:01:29]} 33. Qc2 {[%clk 0:00:25]}  Nh4 {[%clk 0:01:27]} 34. Rb3 {[%clk 0:00:25]}  Nf3+ {[%clk 0:01:26]} 35. Kh1 {[%clk 0:00:24]}  Nxe1 {[%clk 0:01:25]} 36. Bxe1 {[%clk 0:00:25]}  Rg7 {[%clk 0:01:22]} 37. Rb6 {[%clk 0:00:25]}  Qd7 {[%clk 0:01:05]} 38. Qb3 {[%clk 0:00:24]}  Rag8 {[%clk 0:01:02]} 39. Rxb7 {[%clk 0:00:20]}  Qxb7 {[%clk 0:01:00]} 0-1


[Site "https://www.chess.com"]

[Event "Titled Tuesday Blitz April 11 Early 2023"]
[White "Kaidanov, Gregory"]
[Black "Derichs, Roger"]
[WhiteFideId "2008564"]
[BlackFideId "4630076"]
[WhiteElo "2547"]
[BlackElo "2362"]
[Result "0-1"]
[Round "03"]
[TimeControl "180+2"]
[Date "2023.04.11"]
[WhiteClock "0:00:01"]
[BlackClock "0:00:08"]

1. Nf3 {[%clk 0:02:55]}  d5 {[%clk 0:02:59]} 2. g3 {[%clk 0:02:55]}  g6 {[%clk 0:03:00]} 3. c4 {[%clk 0:02:53]}  dxc4 {[%clk 0:02:58]} 4. Qa4+ {[%clk 0:02:53]}  Nc6 {[%clk 0:02:58]} 5. Qxc4 {[%clk 0:02:52]}  Bg7 {[%clk 0:02:57]} 6. Bg2 {[%clk 0:02:53]}  e5 {[%clk 0:02:57]} 7. O-O {[%clk 0:02:52]}  Nge7 {[%clk 0:02:56]} 8. d3 {[%clk 0:02:52]}  O-O {[%clk 0:02:56]} 9. Qh4 {[%clk 0:02:48]}  Nf5 {[%clk 0:02:54]} 10. Qxd8 {[%clk 0:02:47]}  Rxd8 {[%clk 0:02:54]} 11. Nc3 {[%clk 0:02:47]}  Ncd4 {[%clk 0:02:38]} 12. Bg5 {[%clk 0:02:44]}  f6 {[%clk 0:02:34]} 13. Bd2 {[%clk 0:02:43]}  Nxf3+ {[%clk 0:02:28]} 14. Bxf3 {[%clk 0:02:43]}  Nd4 {[%clk 0:02:28]} 15. Bg2 {[%clk 0:02:33]}  c6 {[%clk 0:02:26]} 16. Rfd1 {[%clk 0:02:28]}  Bg4 {[%clk 0:02:23]} 17. Kf1 {[%clk 0:02:27]}  Rac8 {[%clk 0:02:20]} 18. h3 {[%clk 0:02:23]}  Bd7 {[%clk 0:02:16]} 19. Ne4 {[%clk 0:02:14]}  b6 {[%clk 0:02:06]} 20. b4 {[%clk 0:02:09]}  Be8 {[%clk 0:01:51]} 21. e3 {[%clk 0:02:02]}  Ne6 {[%clk 0:01:49]} 22. Ke2 {[%clk 0:02:02]}  c5 {[%clk 0:01:44]} 23. bxc5 {[%clk 0:01:58]}  Nxc5 {[%clk 0:01:45]} 24. Nxc5 {[%clk 0:01:39]}  Rxc5 {[%clk 0:01:45]} 25. a4 {[%clk 0:01:25]}  Rdc8 {[%clk 0:01:27]} 26. Bb4 {[%clk 0:01:15]}  Rc2+ {[%clk 0:01:26]} 27. Rd2 {[%clk 0:01:16]}  Bf8 {[%clk 0:01:20]} 28. Bd5+ {[%clk 0:01:12]}  Bf7 {[%clk 0:01:20]} 29. Bxf7+ {[%clk 0:01:09]}  Kxf7 {[%clk 0:01:20]} 30. Bxf8 {[%clk 0:01:09]}  Kxf8 {[%clk 0:01:10]} 31. Kd1 {[%clk 0:01:05]}  Rxd2+ {[%clk 0:00:59]} 32. Kxd2 {[%clk 0:01:04]}  Ke7 {[%clk 0:01:00]} 33. a5 {[%clk 0:00:57]}  Rc7 {[%clk 0:01:00]} 34. axb6 {[%clk 0:00:55]}  axb6 {[%clk 0:01:01]} 35. Rb1 {[%clk 0:00:51]}  Rb7 {[%clk 0:01:00]} 36. Kc3 {[%clk 0:00:49]}  Kd6 {[%clk 0:01:00]} 37. Kb4 {[%clk 0:00:47]}  Kc6 {[%clk 0:01:01]} 38. Rc1+ {[%clk 0:00:46]}  Kd6 {[%clk 0:01:00]} 39. Kb5 {[%clk 0:00:44]}  Ra7 {[%clk 0:00:58]} 40. Kxb6 {[%clk 0:00:37]}  Ra2 {[%clk 0:00:58]} 41. Rc6+ {[%clk 0:00:36]}  Ke7 {[%clk 0:00:51]} 42. Rc7+ {[%clk 0:00:26]}  Ke6 {[%clk 0:00:51]} 43. f4 {[%clk 0:00:25]}  Ra3 {[%clk 0:00:39]} 44. Rxh7 {[%clk 0:00:17]}  Rxd3 {[%clk 0:00:39]} 45. Rg7 {[%clk 0:00:16]}  Rxe3 {[%clk 0:00:36]} 46. fxe5 {[%clk 0:00:16]}  fxe5 {[%clk 0:00:21]} 47. Rxg6+ {[%clk 0:00:15]}  Kf5 {[%clk 0:00:22]} 48. Rg8 {[%clk 0:00:15]}  Rc3 {[%clk 0:00:20]} 49. h4 {[%clk 0:00:15]}  e4 {[%clk 0:00:20]} 50. h5 {[%clk 0:00:15]}  Rc1 {[%clk 0:00:18]} 51. g4+ {[%clk 0:00:13]}  Kf4 {[%clk 0:00:17]} 52. g5 {[%clk 0:00:13]}  Rh1 {[%clk 0:00:16]} 53. h6 {[%clk 0:00:13]}  e3 {[%clk 0:00:16]} 54. g6 {[%clk 0:00:11]}  Rxh6 {[%clk 0:00:14]} 55. Rf8+ {[%clk 0:00:10]}  Kg5 {[%clk 0:00:13]} 56. Re8 {[%clk 0:00:08]}  Rxg6+ {[%clk 0:00:12]} 57. Kc5 {[%clk 0:00:09]}  Kf4 {[%clk 0:00:12]} 58. Kd4 {[%clk 0:00:05]}  Rd6+ {[%clk 0:00:12]} 59. Kc3 {[%clk 0:00:06]}  Kf3 {[%clk 0:00:12]} 60. Rf8+ {[%clk 0:00:06]}  Ke2 {[%clk 0:00:12]} 61. Rh8 {[%clk 0:00:03]}  Rc6+ {[%clk 0:00:10]} 62. Kd4 {[%clk 0:00:01]}  Rd6+ {[%clk 0:00:10]} 63. Ke5 {[%clk 0:00:01]}  Rd7 {[%clk 0:00:08]} 0-1


[Site "https://www.chess.com"]

[Event "Titled Tuesday Blitz April 11 Early 2023"]
[White "Baches Garcia, Guillermo"]
[Black "Ward, Ieuan C"]
[WhiteFideId "2209764"]
[BlackFideId "406627"]
[WhiteElo "2456"]
[BlackElo "2322"]
[Result "1/2-1/2"]
[Round "03"]
[TimeControl "180+2"]
[Date "2023.04.11"]
[WhiteClock "0:01:24"]
[BlackClock "0:01:51"]

1. e4 {[%clk 0:03:00]}  c5 {[%clk 0:02:58]} 2. Nf3 {[%clk 0:03:00]}  d6 {[%clk 0:02:58]} 3. d4 {[%clk 0:03:01]}  cxd4 {[%clk 0:02:58]} 4. Nxd4 {[%clk 0:03:01]}  Nf6 {[%clk 0:02:59]} 5. Nc3 {[%clk 0:03:02]}  a6 {[%clk 0:02:59]} 6. Be3 {[%clk 0:03:02]}  e5 {[%clk 0:02:59]} 7. Nb3 {[%clk 0:03:02]}  Be6 {[%clk 0:03:00]} 8. f3 {[%clk 0:03:03]}  Nbd7 {[%clk 0:03:00]} 9. g4 {[%clk 0:03:02]}  b5 {[%clk 0:02:59]} 10. a4 {[%clk 0:02:53]}  b4 {[%clk 0:02:59]} 11. Nd5 {[%clk 0:02:53]}  Bxd5 {[%clk 0:02:57]} 12. exd5 {[%clk 0:02:51]}  Nb6 {[%clk 0:02:57]} 13. Bf2 {[%clk 0:02:48]}  Qc7 {[%clk 0:02:32]} 14. g5 {[%clk 0:02:41]}  Nfd7 {[%clk 0:02:31]} 15. Qd3 {[%clk 0:02:21]}  a5 {[%clk 0:02:18]} 16. Qe4 {[%clk 0:02:03]}  Be7 {[%clk 0:02:11]} 17. Bd3 {[%clk 0:02:02]}  Bxg5 {[%clk 0:02:05]} 18. h4 {[%clk 0:01:51]}  Bh6 {[%clk 0:01:57]} 19. Bb5 {[%clk 0:01:48]}  O-O {[%clk 0:01:51]} 20. Bc6 {[%clk 0:01:24]} 1/2-1/2


[Site "https://www.chess.com"]

[Event "Titled Tuesday Blitz April 11 Early 2023"]
[White "Sowul, Bartosz"]
[Black "Zampronha, Wladimir Camilo"]
[WhiteFideId "1137590"]
[BlackFideId "2103087"]
[WhiteElo "2188"]
[BlackElo "2176"]
[Result "1-0"]
[Round "03"]
[TimeControl "180+2"]
[Date "2023.04.11"]
[WhiteClock "0:00:29"]
[BlackClock "0:00:49"]

1. e4 {[%clk 0:02:59]}  c5 {[%clk 0:03:00]} 2. Nc3 {[%clk 0:02:59]}  e6 {[%clk 0:02:59]} 3. Nf3 {[%clk 0:03:00]}  Nc6 {[%clk 0:02:58]} 4. Bb5 {[%clk 0:02:59]}  Nd4 {[%clk 0:02:57]} 5. O-O {[%clk 0:02:57]}  a6 {[%clk 0:02:51]} 6. Bd3 {[%clk 0:02:54]}  b5 {[%clk 0:02:49]} 7. a3 {[%clk 0:02:48]}  Bb7 {[%clk 0:02:46]} 8. Nxd4 {[%clk 0:02:43]}  cxd4 {[%clk 0:02:47]} 9. Ne2 {[%clk 0:02:42]}  Qb6 {[%clk 0:02:47]} 10. c3 {[%clk 0:02:38]}  dxc3 {[%clk 0:02:44]} 11. dxc3 {[%clk 0:02:39]}  Nf6 {[%clk 0:02:42]} 12. Be3 {[%clk 0:02:37]}  Qc7 {[%clk 0:02:35]} 13. Ng3 {[%clk 0:02:31]}  Bc5 {[%clk 0:02:33]} 14. Bd4 {[%clk 0:02:22]}  d5 {[%clk 0:02:12]} 15. exd5 {[%clk 0:02:13]}  Bxd5 {[%clk 0:02:13]} 16. Bxc5 {[%clk 0:01:59]}  Qxc5 {[%clk 0:02:12]} 17. Nh5 {[%clk 0:01:56]}  Qe7 {[%clk 0:02:00]} 18. Nxg7+ {[%clk 0:01:50]}  Kf8 {[%clk 0:01:57]} 19. Nh5 {[%clk 0:01:49]}  Nxh5 {[%clk 0:01:52]} 20. Qxh5 {[%clk 0:01:50]}  Rg8 {[%clk 0:01:52]} 21. g3 {[%clk 0:01:39]}  Qf6 {[%clk 0:01:31]} 22. Rfe1 {[%clk 0:01:31]}  h6 {[%clk 0:01:26]} 23. Be4 {[%clk 0:01:14]}  Rd8 {[%clk 0:01:20]} 24. Rad1 {[%clk 0:01:02]}  Bxe4 {[%clk 0:01:10]} 25. Rxd8+ {[%clk 0:01:00]}  Qxd8 {[%clk 0:01:11]} 26. Qxh6+ {[%clk 0:00:57]}  Rg7 {[%clk 0:01:08]} 27. Qh8+ {[%clk 0:00:55]}  Rg8 {[%clk 0:01:06]} 28. Qh6+ {[%clk 0:00:53]}  Rg7 {[%clk 0:01:06]} 29. Rxe4 {[%clk 0:00:47]}  Qd1+ {[%clk 0:01:05]} 30. Kg2 {[%clk 0:00:47]}  Qd5 {[%clk 0:01:04]} 31. f3 {[%clk 0:00:38]}  Qd1 {[%clk 0:00:49]} 32. Qh8+ {[%clk 0:00:31]}  Ke7 {[%clk 0:00:49]} 33. Qxg7 {[%clk 0:00:29]} 1-0


[Site "https://www.chess.com"]

[Event "Titled Tuesday Blitz April 11 Early 2023"]
[White "lolliNOPE"]
[Black "mohsengabr2002"]
[WhiteElo "2142"]
[BlackElo "2448"]
[Result "1/2-1/2"]
[Round "03"]
[TimeControl "180+2"]
[Date "2023.04.11"]
[WhiteClock "0:00:21"]
[BlackClock "0:00:06"]

1. e4 {[%clk 0:02:57]}  c5 {[%clk 0:01:02]} 2. Nf3 {[%clk 0:02:51]}  d6 {[%clk 0:01:02]} 3. d4 {[%clk 0:02:51]}  cxd4 {[%clk 0:01:02]} 4. Nxd4 {[%clk 0:02:52]}  a6 {[%clk 0:01:03]} 5. c4 {[%clk 0:02:49]}  g6 {[%clk 0:01:02]} 6. Nc3 {[%clk 0:02:48]}  Bg7 {[%clk 0:01:02]} 7. Be3 {[%clk 0:02:48]}  Nc6 {[%clk 0:01:02]} 8. Be2 {[%clk 0:02:48]}  Nf6 {[%clk 0:01:02]} 9. O-O {[%clk 0:02:48]}  O-O {[%clk 0:01:02]} 10. Rc1 {[%clk 0:02:45]}  Bd7 {[%clk 0:01:02]} 11. Kh1 {[%clk 0:02:38]}  Rc8 {[%clk 0:01:02]} 12. b3 {[%clk 0:02:31]}  Qa5 {[%clk 0:01:01]} 13. Qd2 {[%clk 0:02:15]}  Nxd4 {[%clk 0:00:59]} 14. Bxd4 {[%clk 0:02:15]}  Nxe4 {[%clk 0:00:58]} 15. Nxe4 {[%clk 0:02:13]}  Qxd2 {[%clk 0:00:55]} 16. Nxd2 {[%clk 0:02:12]}  Bxd4 {[%clk 0:00:55]} 17. Bf3 {[%clk 0:02:09]}  Bc6 {[%clk 0:00:55]} 18. Rfe1 {[%clk 0:02:08]}  Bxf3 {[%clk 0:00:50]} 19. Nxf3 {[%clk 0:02:07]}  Bf6 {[%clk 0:00:50]} 20. g4 {[%clk 0:02:06]}  e5 {[%clk 0:00:46]} 21. Rcd1 {[%clk 0:02:05]}  Be7 {[%clk 0:00:46]} 22. Nd2 {[%clk 0:02:04]}  f5 {[%clk 0:00:44]} 23. gxf5 {[%clk 0:02:03]}  gxf5 {[%clk 0:00:44]} 24. Nb1 {[%clk 0:01:55]}  b5 {[%clk 0:00:42]} 25. Nd2 {[%clk 0:01:51]}  Kf7 {[%clk 0:00:39]} 26. Rc1 {[%clk 0:01:45]}  Rg8 {[%clk 0:00:20]} 27. cxb5 {[%clk 0:01:39]}  axb5 {[%clk 0:00:20]} 28. Rxc8 {[%clk 0:01:32]}  Rxc8 {[%clk 0:00:20]} 29. a4 {[%clk 0:01:08]}  bxa4 {[%clk 0:00:19]} 30. bxa4 {[%clk 0:01:08]}  Rc2 {[%clk 0:00:19]} 31. Rd1 {[%clk 0:01:02]}  Ra2 {[%clk 0:00:19]} 32. Nc4 {[%clk 0:00:59]}  Rxa4 {[%clk 0:00:17]} 33. Nxd6+ {[%clk 0:00:59]}  Bxd6 {[%clk 0:00:17]} 34. Rxd6 {[%clk 0:00:59]}  Ra2 {[%clk 0:00:16]} 35. Kg2 {[%clk 0:00:59]}  f4 {[%clk 0:00:16]} 36. Kf3 {[%clk 0:00:58]}  Ra4 {[%clk 0:00:14]} 37. Rh6 {[%clk 0:00:56]}  Kg7 {[%clk 0:00:14]} 38. Re6 {[%clk 0:00:56]}  Ra5 {[%clk 0:00:13]} 39. Ke4 {[%clk 0:00:56]}  Ra2 {[%clk 0:00:12]} 40. Rxe5 {[%clk 0:00:55]}  Rxf2 {[%clk 0:00:12]} 41. Rf5 {[%clk 0:00:54]}  Rxh2 {[%clk 0:00:10]} 42. Rxf4 {[%clk 0:00:53]}  Kg6 {[%clk 0:00:10]} 43. Kf3 {[%clk 0:00:52]}  Ra2 {[%clk 0:00:08]} 44. Kg3 {[%clk 0:00:49]}  h5 {[%clk 0:00:07]} 45. Rb4 {[%clk 0:00:47]}  Ra5 {[%clk 0:00:06]} 46. Kh4 {[%clk 0:00:43]}  Ra6 {[%clk 0:00:06]} 47. Rc4 {[%clk 0:00:41]}  Kh6 {[%clk 0:00:06]} 48. Rb4 {[%clk 0:00:41]}  Rd6 {[%clk 0:00:06]} 49. Rc4 {[%clk 0:00:40]}  Kg6 {[%clk 0:00:07]} 50. Rb4 {[%clk 0:00:40]}  Rf6 {[%clk 0:00:07]} 51. Rc4 {[%clk 0:00:39]}  Re6 {[%clk 0:00:07]} 52. Rb4 {[%clk 0:00:39]}  Re1 {[%clk 0:00:07]} 53. Rb6+ {[%clk 0:00:39]}  Kf5 {[%clk 0:00:08]} 54. Rb5+ {[%clk 0:00:37]}  Kf4 {[%clk 0:00:08]} 55. Kxh5 {[%clk 0:00:35]}  Rh1+ {[%clk 0:00:07]} 56. Kg6 {[%clk 0:00:35]}  Rg1+ {[%clk 0:00:07]} 57. Kf6 {[%clk 0:00:35]}  Ra1 {[%clk 0:00:07]} 58. Rb4+ {[%clk 0:00:35]}  Ke3 {[%clk 0:00:07]} 59. Ke5 {[%clk 0:00:34]}  Kd3 {[%clk 0:00:07]} 60. Rd4+ {[%clk 0:00:32]}  Kc3 {[%clk 0:00:07]} 61. Rh4 {[%clk 0:00:30]}  Ra5+ {[%clk 0:00:07]} 62. Kf4 {[%clk 0:00:30]}  Kd3 {[%clk 0:00:06]} 63. Kf3 {[%clk 0:00:29]}  Rf5+ {[%clk 0:00:06]} 64. Rf4 {[%clk 0:00:29]}  Rd5 {[%clk 0:00:06]} 65. Rf8 {[%clk 0:00:28]}  Rd7 {[%clk 0:00:05]} 66. Rf6 {[%clk 0:00:26]}  Kd4 {[%clk 0:00:05]} 67. Rf4+ {[%clk 0:00:25]}  Ke5 {[%clk 0:00:04]} 68. Ke3 {[%clk 0:00:23]}  Ra7 {[%clk 0:00:04]} 69. Re4+ {[%clk 0:00:22]}  Kd5 {[%clk 0:00:04]} 70. Rd4+ {[%clk 0:00:23]}  Kc5 {[%clk 0:00:05]} 71. Rh4 {[%clk 0:00:23]}  Ra3+ {[%clk 0:00:05]} 72. Kf4 {[%clk 0:00:23]}  Ra4+ {[%clk 0:00:05]} 73. Kg5 {[%clk 0:00:23]}  Ra1 {[%clk 0:00:05]} 74. Rh5 {[%clk 0:00:22]}  Kd5 {[%clk 0:00:06]} 75. Kf6+ {[%clk 0:00:22]}  Kd6 {[%clk 0:00:06]} 76. Rf5 {[%clk 0:00:22]}  Re1 {[%clk 0:00:06]} 77. Rf2 {[%clk 0:00:21]}  Rg1 {[%clk 0:00:05]} 78. Rd2+ {[%clk 0:00:21]}  Kc5 {[%clk 0:00:06]} 79. Ke5 {[%clk 0:00:21]}  Kc4 {[%clk 0:00:06]} 80. Rd8 {[%clk 0:00:20]}  Re1+ {[%clk 0:00:06]} 81. Kf4 {[%clk 0:00:20]}  Rf1+ {[%clk 0:00:06]} 82. Ke3 {[%clk 0:00:20]}  Ra1 {[%clk 0:00:06]} 83. Ke4 {[%clk 0:00:20]}  Re1+ {[%clk 0:00:06]} 84. Kf3 {[%clk 0:00:21]}  Kc5 {[%clk 0:00:06]} 85. Kf2 {[%clk 0:00:21]}  Re7 {[%clk 0:00:05]} 86. Kf3 {[%clk 0:00:21]}  Kc6 {[%clk 0:00:05]} 87. Rd1 {[%clk 0:00:21]}  Kc7 {[%clk 0:00:06]} 88. Kf4 {[%clk 0:00:21]}  Rd7 {[%clk 0:00:06]} 89. Rxd7+ {[%clk 0:00:21]}  Kxd7 {[%clk 0:00:06]} 1/2-1/2


[Site "https://www.chess.com"]